[Event "Wuerttemberg Rapid Teams 2024"]
[Site "B?blingen, Germany"]
[Date "2024.04.13"]
[Round "5.24"]
[White "Kaufmann, Gunther"]
[Black "Deubel, Silas"]
[Result "0-1"]
[ECO "B40"]
[WhiteElo "1852"]
[BlackElo "1851"]
[Annotator "NA RC COMBH"]
[PlyCount "74"]
[EventDate "2024.04.13"]
[EventType "team-tourn"]
[SourceTitle "playchess.com"]
[Source "ChessBase"]
[SourceQuality "1"]
[TimeControl "900+5"]

1. e4 {[%emt 0:00:02]} c5 {[%emt 0:00:01]} 2. Nf3 {[%emt 0:00:02]} e6 {[%emt 0:00:02]} 3. d4 {[%emt 0:00:02]} cxd4 {[%emt 0:00:01]} 4. Nxd4 {[%emt 0:00:01]} Nf6 {[%emt 0:00:02]} 5. Bd3 {[%emt 0:00:28]} Nc6 {[%emt 0:00:13]} 6. Nb3 {[%emt 0:00:36]} d5 {[%emt 0:00:17]} 7. exd5 {[%emt 0:00:34]} Nxd5 {[%emt 0:00:39]} 8. O-O {[%emt 0:00:40]} b6 {[%emt 0:00:15]} 9. c4 {[%emt 0:01:12]} Nf6 {[%emt 0:00:19]} 10. Bg5 {[%emt 0:00:35]} Be7 {[%emt 0:00:02]} 11. Qf3 {[%emt 0:01:58]} Bb7 {[%emt 0:00:10]} 12. Qh3 {[%emt 0:00:17]} Ne5 {[%emt 0:00:29]} 13. Be2 {[%emt 0:00:16]} O-O {[%emt 0:01:00]} 14. Nc3 {[%emt 0:00:22]} Nfd7 {[%emt 0:02:10]} 15. Bxe7 {[%emt 0:01:04]} Qxe7 {[%emt 0:00:01]} 16. Rad1 {[%emt 0:00:14]} Rac8 {[%emt 0:00:05]} 17. Nd2 {[%emt 0:00:04]} Qb4 {[%emt 0:00:42]} 18. b3 {[%emt 0:00:43]} Nf6 {[%emt 0:00:23]} 19. Bd3 {[%emt 0:01:28]} Nxd3 {[%emt 0:00:33]} 20. Qxd3 {[%emt 0:00:03]} Rfd8 {[%emt 0:00:03]} 21. Qc2 {[%emt 0:00:30]} Rd4 {[%emt 0:01:01]} 22. Nb5 {[%emt 0:00:50]} Rg4 {[%emt 0:00:37]} 23. f3 {[%emt 0:00:27]} Rg5 {[%emt 0:01:10]} 24. Nxa7 {[%emt 0:00:15]} Qc5+ {[%emt 0:01:34]} 25. Kh1 {[%emt 0:00:03]} Ra8 {[%emt 0:00:53]} 26. Nb5 {[%emt 0:00:03]} h5 {[%emt 0:00:56]} 27. Nc3 {[%emt 0:01:09]} Rg6 {[%emt 0:01:22]} 28. a4 {[%emt 0:00:15]} h4 {[%emt 0:00:12]} 29. Nde4 {[%emt 0:00:10]} Qh5 {[%emt 0:00:32]} 30. Nxf6+ {[%emt 0:00:12]} Rxf6 {[%emt 0:00:03]} 31. Ne4 {[%emt 0:00:05]} Rg6 {[%emt 0:00:11]} 32. Rd7 {[%emt 0:00:37]} h3 {[%emt 0:00:30]} 33. g3 {[%emt 0:00:40]} Bc6 {[%emt 0:00:03]} 34. Rc7 {[%emt 0:00:17]} Be8 {[%emt 0:00:37]} 35. Nd6 {[%emt 0:00:24]} Qe5 {[%emt 0:00:24]} 36. Nxe8 {[%emt 0:00:27]} Rxe8 {[%emt 0:00:02]} 37. f4 {[%emt 0:00:11]} Qxc7 {[%emt 0:00:01]} 0-1

[Event "Wuerttemberg Rapid Teams 2024"]
[Site "B?blingen, Germany"]
[Date "2024.04.13"]
[Round "5.26"]
[White "Kaufmann, Thorsten"]
[Black "Hofer, Markus"]
[Result "0-1"]
[ECO "B03"]
[WhiteElo "2057"]
[BlackElo "2047"]
[Annotator "NA RC"]
[PlyCount "92"]
[EventDate "2024.04.13"]
[EventType "team-tourn"]
[SourceTitle "playchess.com"]
[Source "ChessBase"]
[SourceQuality "1"]
[TimeControl "900+5"]

1. e4 {[%emt 0:00:01]} Nf6 {[%emt 0:00:00]} 2. e5 {[%emt 0:00:04]} Nd5 {[%emt 0:00:01]} 3. d4 {[%emt 0:00:01]} d6 {[%emt 0:00:00]} 4. exd6 {[%emt 0:00:04]} exd6 {[%emt 0:00:01]} 5. Nf3 {[%emt 0:00:01]} Be7 {[%emt 0:00:02]} 6. Be2 {[%emt 0:00:03]} O-O {[%emt 0:00:06]} 7. O-O {[%emt 0:00:02]} Bf6 {[%emt 0:00:06]} 8. h3 {[%emt 0:00:09]} Bf5 {[%emt 0:00:04]} 9. a3 {[%emt 0:00:07]} Nc6 {[%emt 0:00:36]} 10. c4 {[%emt 0:00:11]} Nb6 {[%emt 0:00:04]} 11. Nc3 {[%emt 0:00:03]} Re8 {[%emt 0:00:25]} 12. b3 {[%emt 0:00:43]} a5 {[%emt 0:00:15]} 13. Bb2 {[%emt 0:01:02]} a4 {[%emt 0:00:02]} 14. d5 {[%emt 0:00:31]} Na5 {[%emt 0:00:58]} 15. Nxa4 {[%emt 0:00:22]} Nxa4 {[%emt 0:00:01]} 16. Bxf6 {[%emt 0:00:01]} Qxf6 {[%emt 0:00:02]} 17. bxa4 {[%emt 0:00:03]} Qc3 {[%emt 0:03:42]} 18. Nd4 {[%emt 0:00:05]} Bg6 {[%emt 0:00:01]} 19. Nb5 {[%emt 0:00:01]} Qb2 {[%emt 0:00:27]} 20. Bd3 {[%emt 0:00:58]} Re7 {[%emt 0:00:20]} 21. Bxg6 {[%emt 0:00:08]} hxg6 {[%emt 0:00:01]} 22. Qc1 {[%emt 0:00:22]} Qxc1 {[%emt 0:00:12]} 23. Raxc1 {[%emt 0:00:02]} Nb3 {[%emt 0:00:38]} 24. Rc3 {[%emt 0:00:37]} Nc5 {[%emt 0:00:05]} 25. Rb1 {[%emt 0:00:22]} Rxa4 {[%emt 0:00:11]} 26. Rb4 {[%emt 0:00:31]} Ra6 {[%emt 0:01:27]} 27. Re3 {[%emt 0:01:00]} Rxe3 {[%emt 0:00:53]} 28. fxe3 {[%emt 0:00:02]} Kf8 {[%emt 0:00:02]} 29. Nxc7 {[%emt 0:00:03]} Rxa3 {[%emt 0:00:01]} 30. Nb5 {[%emt 0:00:03]} Ra1+ {[%emt 0:00:16]} 31. Kh2 {[%emt 0:00:03]} Ke7 {[%emt 0:00:04]} 32. Nc3 {[%emt 0:00:13]} Ra3 {[%emt 0:00:15]} 33. Nb5 {[%emt 0:01:10]} Rxe3 {[%emt 0:00:18]} 34. Na7 {[%emt 0:00:01]} Ra3 {[%emt 0:01:01]} 35. Nb5 {[%emt 0:00:22]} Ra2 {[%emt 0:01:19]} 36. Rb1 {[%emt 0:00:40]} Rc2 {[%emt 0:00:20]} 37. Re1+ {[%emt 0:00:01]} Kd7 {[%emt 0:00:06]} 38. Rf1 {[%emt 0:00:01]} f6 {[%emt 0:00:20]} 39. Rf4 {[%emt 0:00:09]} g5 {[%emt 0:00:09]} 40. Rd4 {[%emt 0:00:08]} f5 {[%emt 0:00:41]} 41. h4 {[%emt 0:00:21]} Nb3 {[%emt 0:01:02]} 42. Rd3 {[%emt 0:00:15]} Nc1 {[%emt 0:00:22]} 43. Re3 {[%emt 0:00:11]} Rxc4 {[%emt 0:00:18]} 44. Re6 {[%emt 0:00:02]} Rxh4+ {[%emt 0:00:05]} 45. Kg1 {[%emt 0:00:03]} Rh6 {[%emt 0:00:07]} 46. Nxd6 {[%emt 0:00:08]} Rxe6 {[%emt 0:00:08]} 0-1

[Event "Wuerttemberg Rapid Teams 2024"]
[Site "B?blingen, Germany"]
[Date "2024.04.13"]
[Round "5.29"]
[White "Belica, Matej"]
[Black "Schaefer, Daniel"]
[Result "1-0"]
[ECO "C54"]
[WhiteElo "2173"]
[BlackElo "1952"]
[Annotator "RC"]
[PlyCount "101"]
[EventDate "2024.04.13"]
[EventType "team-tourn"]
[SourceTitle "playchess.com"]
[Source "ChessBase"]
[SourceQuality "1"]
[TimeControl "900+5"]

1. e4 {[%emt 0:00:05]} e5 {[%emt 0:00:02]} 2. Nf3 {[%emt 0:00:00]} Nc6 {[%emt 0:00:01]} 3. Bc4 {[%emt 0:00:00]} Bc5 {[%emt 0:00:01]} 4. c3 {[%emt 0:00:04]} Nf6 {[%emt 0:00:01]} 5. d3 {[%emt 0:00:11]} h6 {[%emt 0:00:02]} 6. Bb3 {[%emt 0:00:12]} d6 {[%emt 0:00:10]} 7. Nbd2 {[%emt 0:00:12]} O-O {[%emt 0:00:34]} 8. h3 {[%emt 0:00:19]} a5 {[%emt 0:01:18]} 9. O-O {[%emt 0:00:33]} Ba7 {[%emt 0:00:33]} 10. Re1 {[%emt 0:00:14]} Ne7 {[%emt 0:00:06]} 11. Nc4 {[%emt 0:01:08]} c6 {[%emt 0:00:08]} 12. d4 {[%emt 0:00:16]} Ng6 {[%emt 0:01:10]} 13. dxe5 {[%emt 0:00:10]} Nxe5 {[%emt 0:01:29]} 14. Ncxe5 {[%emt 0:00:26]} dxe5 {[%emt 0:00:02]} 15. Qxd8 {[%emt 0:00:01]} Rxd8 {[%emt 0:00:01]} 16. Nxe5 {[%emt 0:00:03]} Be6 {[%emt 0:00:23]} 17. Nf3 {[%emt 0:01:15]} Re8 {[%emt 0:00:50]} 18. e5 {[%emt 0:03:49]} Nd7 {[%emt 0:00:27]} 19. Be3 {[%emt 0:00:28]} Bxb3 {[%emt 0:00:36]} 20. axb3 {[%emt 0:00:46]} Nxe5 {[%emt 0:00:38]} 21. Rxa5 {[%emt 0:01:19]} Nxf3+ {[%emt 0:01:29]} 22. gxf3 {[%emt 0:00:08]} Bxe3 {[%emt 0:00:16]} 23. Rxe3 {[%emt 0:00:19]} Red8 {[%emt 0:02:24]} 24. Rxa8 {[%emt 0:00:08]} Rxa8 {[%emt 0:00:01]} 25. Re7 {[%emt 0:00:01]} Ra2 {[%emt 0:00:03]} 26. Rxb7 {[%emt 0:00:20]} Rxb2 {[%emt 0:00:01]} 27. f4 {[%emt 0:00:20]} g6 {[%emt 0:00:37]} 28. Kg2 {[%emt 0:00:08]} c5 {[%emt 0:00:52]} 29. Rb5 {[%emt 0:01:04]} Kg7 {[%emt 0:00:15]} 30. Kf3 {[%emt 0:00:01]} Kf6 {[%emt 0:00:02]} 31. Ke4 {[%emt 0:00:08]} Ke6 {[%emt 0:00:31]} 32. Rb6+ {[%emt 0:00:11]} Kd7 {[%emt 0:00:30]} 33. Kd5 {[%emt 0:00:13]} Rxf2 {[%emt 0:00:05]} 34. Rb7+ {[%emt 0:00:28]} Kc8 {[%emt 0:01:12]} 35. Rxf7 {[%emt 0:00:02]} Rf3 {[%emt 0:00:01]} 36. Kc4 {[%emt 0:01:08]} g5 {[%emt 0:00:25]} 37. f5 {[%emt 0:00:23]} Rxh3 {[%emt 0:00:11]} 38. Rf6 {[%emt 0:01:08]} Kc7 {[%emt 0:00:08]} 39. Rg6 {[%emt 0:00:04]} Rf3 {[%emt 0:00:16]} 40. f6 {[%emt 0:00:01]} Rf5 {[%emt 0:00:23]} 41. Rxh6 {[%emt 0:00:09]} g4 {[%emt 0:00:01]} 42. Rg6 {[%emt 0:00:04]} Kc6 {[%emt 0:00:07]} 43. f7+ {[%emt 0:00:06]} Kd7 {[%emt 0:00:02]} 44. Rxg4 {[%emt 0:00:14]} Ke7 {[%emt 0:00:01]} 45. Rg7 {[%emt 0:00:06]} Rf3 {[%emt 0:00:14]} 46. Rh7 {[%emt 0:00:12]} Rf5 {[%emt 0:00:05]} 47. f8=Q+ Kxf8 {[%emt 0:00:01]} 48. Rc7 {[%emt 0:00:08]} Rf3 {[%emt 0:00:14]} 49. Rxc5 {[%emt 0:00:02]} Ke8 {[%emt 0:00:00]} 50. Rd5 {[%emt 0:00:01]} Ke7 {[%emt 0:00:01]} 51. b4 {[%emt 0:00:02]} 1-0

[Event "Wuerttemberg Rapid Teams 2024"]
[Site "B?blingen, Germany"]
[Date "2024.04.13"]
[Round "5.31"]
[White "Vrabac, Branko"]
[Black "Mikeler, Marcel"]
[Result "0-1"]
[ECO "D02"]
[WhiteElo "1932"]
[BlackElo "1945"]
[Annotator "TA"]
[PlyCount "77"]
[EventDate "2024.04.13"]
[EventType "team-tourn"]
[SourceTitle "playchess.com"]
[Source "ChessBase"]
[SourceQuality "1"]
[TimeControl "900+5"]

{[%evp 9,77,0,12,0,20,26,35,28,44,26,93,86,88,86,102,32,337,349,330,187,283,208,206,206,335,338,327,339,337,331,347,331,330,341,295,318,551,564,507,270,277,145,419,0,0,-212,-240,-232,0,0,216,-883,29987,0,0,-95,0,-101,182,179,179,-418,-291,-272,0,-397,-394,-1519,-1312,-29997]} 1. d4 {[%emt 0:00:01]} d5 {[%emt 0:00:05]} 2. Bf4 {[%emt 0:00:03]} Nf6 {[%emt 0:00:04]} 3. e3 {[%emt 0:00:01]} c5 {[%emt 0:00:05]} 4. Nf3 {[%emt 0:00:16]} Nc6 {[%emt 0:00:04]} 5. Nbd2 {[%emt 0:00:11]} Qb6 {[%emt 0:00:17][%csl LRb2,LRd4]} 6. dxc5 $1 {[%emt 0:00:13]} Qxc5 {[%emt 0:00:03]} 7. a3 {[%emt 0:00:22]} Bg4 {[%emt 0:00:11][%cal Oe7e5]} 8. c4 {[%emt 0:00:28] White is slightly better.} e5 {[%emt 0:00:30]} 9. Bg5 {[%emt 0:01:05]} a5 {[%emt 0:03:38]} (9... e4 $11 {keeps the balance.} 10. h3 Be6) 10. Qa4 $16 {[%emt 0:02:34]} d4 {[%emt 0:00:45] [#]} 11. b4 $1 {[%emt 0:02:09]} Qe7 {[%emt 0:02:17] [#]} 12. Be2 {[%emt 0:00:40]} (12. c5 $1 $16) 12... O-O-O $2 {[%emt 0:00:13][%mdl 8192]} (12... dxe3 $14 13. Bxe3 e4) 13. b5 $18 {[%emt 0:00:39]} (13. bxa5 h6 $18 (13... d3 $2 14. Bd1 $18)) 13... Nb8 {[%emt 0:01:24]} 14. Qxa5 {[%emt 0:00:59]} (14. c5 $142) 14... h6 {[%emt 0:00:26]} (14... dxe3 $142 15. Bxe3 e4) 15. Bh4 {[%emt 0:00:14]} dxe3 {[%emt 0:01:38]} 16. fxe3 {[%emt 0:00:11][%cal Oc4c5]} e4 {[%emt 0:00:07]} (16... Qc5 $142 17. Bf2 b6) 17. Nd4 {[%emt 0:00:31]} Bxe2 {[%emt 0:00:40]} 18. Kxe2 {[%emt 0:00:17]} (18. Nxe2 $6 Qc5 $18) 18... Qe5 {[%emt 0:01:28]} 19. Bg3 {[%emt 0:00:18]} Qh5+ {[%emt 0:00:01]} 20. Ke1 {[%emt 0:01:03]} Bd6 {[%emt 0:00:02] Against Qc7+} 21. Bxd6 {[%emt 0:00:25]} Rxd6 {[%emt 0:00:01]} 22. c5 {[%emt 0:00:41]} Rd5 {[%emt 0:01:08]} (22... Qxc5 {was called for.} 23. N2b3 b6) 23. Nc4 {[%emt 0:00:44]} Rxc5 {[%emt 0:00:40]} 24. Nb6+ {[%emt 0:00:43]} Kd8 {[%emt 0:00:24]} 25. Rd1 {[%emt 0:00:59]} (25. Na4+ $18 Ke7 26. Nxc5 Qxc5 27. Qb4) 25... Ke8 $2 {[%emt 0:00:13][%mdl 8192]} (25... Ke7 $16) 26. Na8 $2 {[%emt 0:00:37]} ({White should play} 26. Qa8 $18 Qe5 27. Qxb7) 26... Nbd7 $11 {[%emt 0:00:25] ...Nd5 is the strong threat.} 27. Nc7+ {[%emt 0:00:20]} (27. Nb6 $1 $11 Ke7 28. Nxd7 Nxd7 29. Qa7) 27... Ke7 $19 {[%emt 0:00:06]} 28. Qb4 {[%emt 0:00:20]} Kd8 $2 {[%emt 0:00:12]} (28... Qg5 $19 29. b6 Qxe3+ 30. Kf1 Kd8 31. Qxc5 Nxc5 32. Nf5+ Qd3+ 33. Rxd3+ exd3 34. Nxg7 d2) 29. b6 $11 {[%emt 0:00:15]} Nd5 $2 {[%emt 0:00:16]} (29... Kc8 $11 {and Black stays safe.} 30. Ncb5 Qg5) 30. Qa4 $4 {[%emt 0:00:08][%mdl 8192]} (30. Nxd5 $18 Rxd5 31. Rf1) 30... Nxc7 $4 {[%emt 0:00:02][%mdl 8192]} (30... Nxe3 $2 31. Nde6+ Ke7 32. Rxd7+ $18 (32. Qxd7+ Kf6 $18)) (30... N7xb6 $19 31. Qb3 Kxc7) 31. bxc7+ $2 {[%emt 0:00:02]} (31. Ne6+ $1 {mates} Ke7 32. Qxd7+ (32. bxc7 Nb6 $14) 32... Kf6 33. Rf1+ (33. Nxc7 Kg6 $18) 33... Qf5 34. Nxc5 Qxf1+ 35. Kxf1 Ne6 36. Nxe6 (36. Nxe4+ Kg6 $18)) 31... Kxc7 {[%emt 0:00:02] aiming for ...Ne5.} 32. Qb4 {[%emt 0:00:09]} (32. Rf1 $11) 32... Ra8 {[%emt 0:00:08]} (32... Qg5 $17 33. Kf2 Qf6+ 34. Ke1 Kb8) 33. Ne2 {[%emt 0:00:00]} (33. Rf1 $11 {remains equal.}) 33... Qh4+ $2 {[%emt 0:00:00][%mdl 8192] Really sharp!} (33... Raa5 $17 {keeps the pressure on. And now ...Qg6 would win.} 34. Rf1 Ne5 (34... Qxh2 35. Rxd7+ Kxd7 36. Qxb7+ Kd8 37. Qxf7 $14) 35. Qxe4 Kb8 (35... Rxa3 36. Qd4 $11) (35... Qxh2 36. Rb1 $17)) 34. g3 $18 {[%emt 0:00:02][%mdl 1024] White has strong compensation.} Qg5 {[%emt 0:00:00]} (34... Qh5 $2 35. Rxd7+ (35. Qxe4 Ne5 $15) 35... Kxd7 36. Qxb7+ (36. Qxe4 $2 Qd5 $19) 36... Rc7 37. Qxa8 $18) 35. Rd4 $4 {[%emt 0:00:04][%mdl 8192]} (35. Qxe4 $2 Rxa3 36. Rd3 Rxd3 37. Qxd3 Ne5 $19) (35. Rxd7+ $1 $18 {was the only winning move.} Kxd7 36. Qxb7+ (36. Qxe4 $2 Rxa3 37. Qxb7+ Rc7 $19) 36... Kd6 37. Qxa8 Qxe3 38. Qd8+ Ke6 39. Qd2 Qxd2+ 40. Kxd2) 35... Raa5 {[%emt 0:00:00] Strongly threatening ...Ne5.} 36. Rf1 {[%emt 0:00:01]} f6 $2 {[%emt 0:00:00]} ({Less strong is} 36... Qxe3 37. Rxf7 Rc1+ 38. Rd1 Rxd1+ (38... Qxa3 39. Rfxd7+ Kc6 40. Qxb7+ Kc5 41. Rc7#) 39. Kxd1 Qd3+ (39... Rxa3 $2 40. Rxd7+ Kxd7 41. Qxb7+ Kd6 42. Qb8+ Kc5 43. Qc7+ Kb4 44. Qb7+ Ka4 45. Qa8+ Kb3 46. Qb7+ Ka2 47. Nc1+ Ka1 48. Qxg7+ Qc3 49. Qxc3+ Rxc3 50. Ne2 $19) (39... Qxa3 40. Qxa3 Rxa3 41. Rxg7 $11) 40. Qd2 $17) (36... Rab5 $19 37. Rxf7 Rxb4 (37... Qxe3 $2 38. Rdxd7+ Kc6 39. Rc7+ Kd6 40. Qd4+ Qxd4 41. Rcd7+ Ke5 42. Rfe7+ Kf6 43. Nxd4 $18) 38. Rdxd7+ Kb8 39. axb4 Rb5) 37. h4 $2 {[%emt 0:00:03][%mdl 8192]} (37. Nf4 $11 {and White is okay.} Qe5 38. Qb3) 37... Qxe3 $19 {[%emt 0:00:00]} 38. Rxd7+ $2 {[%emt 0:00:19]} (38. Qd2 Qxd2+ (38... Qxa3 39. Rxd7+ Kb8 40. Rd8+ Rc8 41. Rf4 $18) 39. Rxd2) 38... Kxd7 {[%emt 0:00:00][%csl Ge3][%cal Rc5c1]} 39. Qb5+ {[%emt 0:00:00] What a bad dream for White.   Weighted Error Value: White=1.25/Black=1.12.  Loses game:     	White=2     	Black=4      Missed win:     	White=4     	Black=3      Mistake:       	White=5     	Black=5      Inaccurate:     	White=2     	Black=1      OK:         	White=8     	Black=9      Best:        	White=4     	Black=4} 0-1

[Event "Wuerttemberg Rapid Teams 2024"]
[Site "B?blingen, Germany"]
[Date "2024.04.13"]
[Round "5.33"]
[White "Foksha, Mischa"]
[Black "Kulm, Justin"]
[Result "0-1"]
[ECO "A16"]
[WhiteElo "2021"]
[BlackElo "1963"]
[Annotator "NA RC"]
[PlyCount "80"]
[EventDate "2024.04.13"]
[EventType "team-tourn"]
[SourceTitle "playchess.com"]
[Source "ChessBase"]
[SourceQuality "1"]
[TimeControl "900+5"]

1. c4 {[%emt 0:00:03]} Nf6 {[%emt 0:00:02]} 2. g3 {[%emt 0:00:03]} g6 {[%emt 0:00:05]} 3. Bg2 {[%emt 0:00:03]} Bg7 {[%emt 0:00:03]} 4. Nf3 {[%emt 0:00:07]} O-O {[%emt 0:00:05]} 5. O-O {[%emt 0:00:09]} d5 {[%emt 0:00:10]} 6. cxd5 {[%emt 0:00:22]} Nxd5 {[%emt 0:00:01]} 7. Nc3 {[%emt 0:00:06]} Nxc3 {[%emt 0:00:03]} 8. bxc3 {[%emt 0:00:07]} Nd7 {[%emt 0:00:07]} 9. Rb1 {[%emt 0:00:05]} Nb6 {[%emt 0:00:06]} 10. a4 {[%emt 0:00:12]} a5 {[%emt 0:00:02]} 11. Qc2 {[%emt 0:02:08]} Bd7 {[%emt 0:00:13]} 12. Ra1 {[%emt 0:00:25]} Qe8 {[%emt 0:00:21]} 13. Nd4 {[%emt 0:00:17]} Bxa4 {[%emt 0:00:27]} 14. Qb1 {[%emt 0:00:18]} Ra7 {[%emt 0:00:46]} 15. Ba3 {[%emt 0:00:04]} Nc4 {[%emt 0:00:22]} 16. Qa2 {[%emt 0:01:20]} Nxa3 {[%emt 0:00:52]} 17. Qxa3 {[%emt 0:00:09]} Bd7 {[%emt 0:00:35]} 18. Rfb1 {[%emt 0:00:22]} e5 {[%emt 0:00:32]} 19. Nc2 {[%emt 0:00:32]} Bc6 {[%emt 0:00:33]} 20. Qc5 {[%emt 0:00:16]} Ra6 {[%emt 0:01:17]} 21. Bxc6 {[%emt 0:02:45]} Rxc6 {[%emt 0:00:13]} 22. Qxa5 {[%emt 0:00:11]} Qd7 {[%emt 0:00:55]} 23. d3 {[%emt 0:00:13]} e4 {[%emt 0:01:50]} 24. d4 {[%emt 0:00:39]} b6 {[%emt 0:00:02]} 25. Qb5 {[%emt 0:00:34]} Rd8 {[%emt 0:00:52]} 26. Ra3 {[%emt 0:00:15]} Qe6 {[%emt 0:01:51]} 27. Ne3 {[%emt 0:00:35]} Rcd6 {[%emt 0:00:23]} 28. d5 {[%emt 0:00:44]} Qd7 {[%emt 0:01:31]} 29. Qb4 {[%emt 0:00:54]} Re8 {[%emt 0:00:16]} 30. Ra7 {[%emt 0:00:18]} Bh6 {[%emt 0:00:37]} 31. Nc4 {[%emt 0:00:20]} Rxd5 {[%emt 0:00:06]} 32. Kg2 {[%emt 0:00:31]} Qc6 {[%emt 0:00:17]} 33. e3 {[%emt 0:00:43]} Rc5 {[%emt 0:00:18]} 34. Nd2 {[%emt 0:00:03]} Rxc3 {[%emt 0:00:14]} 35. Nb3 {[%emt 0:00:28]} Rc4 {[%emt 0:00:36]} 36. Qd2 {[%emt 0:00:32]} Rc2 {[%emt 0:00:04]} 37. Qe1 {[%emt 0:00:14]} Bg7 {[%emt 0:00:01]} 38. Nc1 {[%emt 0:00:47]} Rd8 {[%emt 0:00:20]} 39. Nb3 {[%emt 0:00:12]} Qf6 {[%emt 0:00:06]} 40. Nd4 {[%emt 0:00:12]} Rc4 {[%emt 0:00:13]} 0-1

[Event "Wuerttemberg Rapid Teams 2024"]
[Site "B?blingen, Germany"]
[Date "2024.04.13"]
[Round "5.34"]
[White "Bueble, Joschua"]
[Black "Foksha, Alexander"]
[Result "1-0"]
[ECO "D36"]
[WhiteElo "1972"]
[BlackElo "1924"]
[Annotator "TA"]
[PlyCount "83"]
[EventDate "2024.04.13"]
[EventType "team-tourn"]
[SourceTitle "playchess.com"]
[Source "ChessBase"]
[SourceQuality "1"]
[TimeControl "900+5"]

{[%evp 21,83,45,56,32,52,25,21,19,29,1,14,0,9,-14,-21,-12,-10,-33,0,0,0,-11,-32,-32,-40,-31,-27,-35,-24,-104,-22,-128,-128,-184,18,-192,7,-16,18,0,2,0,0,0,1,0,62,0,0,-80,10,0,174,184,386,400,793,752,811,800,998,800,785,626]} 1. d4 {[%emt 0:00:02]} d5 {[%emt 0:00:02]} 2. Nf3 {[%emt 0:00:02]} Nf6 {[%emt 0:00:08]} 3. c4 {[%emt 0:00:04]} c6 {[%emt 0:00:02]} 4. Nc3 {[%emt 0:00:02]} e6 {[%emt 0:00:10]} 5. Bg5 {[%emt 0:00:01]} Bd6 {[%emt 0:00:06]} 6. e3 {[%emt 0:00:19]} Nbd7 {[%emt 0:00:04]} 7. Qc2 {[%emt 0:00:09]} Qe7 {[%emt 0:00:07]} 8. cxd5 {[%emt 0:00:25]} exd5 {[%emt 0:00:02]} 9. Bd3 {[%emt 0:00:10]} h6 {[%emt 0:00:05]} 10. Bh4 {[%emt 0:00:02]} O-O {[%emt 0:00:31]} 11. O-O {[%emt 0:00:34]} Re8 {[%emt 0:01:18]} 12. Rfe1 {[%emt 0:00:28]} (12. e4 $5 dxe4 13. Nxe4 $14) 12... g5 {[%emt 0:00:21]} 13. Bg3 {[%emt 0:00:03]} (13. e4 $5) 13... Bxg3 {[%emt 0:00:06]} 14. hxg3 {[%emt 0:00:03] The position is equal.} Ne4 {[%emt 0:00:18]} 15. Bxe4 {[%emt 0:00:23]} dxe4 {[%emt 0:00:03]} 16. Nd2 {[%emt 0:00:02]} Nf6 {[%emt 0:00:46]} 17. Nc4 {[%emt 0:00:21]} Bf5 {[%emt 0:01:53]} 18. Ne5 {[%emt 0:01:44]} Rad8 {[%emt 0:00:23]} 19. Qe2 {[%emt 0:01:10]} Nd7 {[%emt 0:00:24]} 20. Nxd7 {[%emt 0:00:20]} Rxd7 {[%emt 0:00:02]} 21. Qh5 {[%emt 0:00:15][%cal Og3g4]} Kg7 {[%emt 0:00:10]} 22. Red1 {[%emt 0:00:41]} Qe6 {[%emt 0:00:13] [#] Strongly threatening ...Bg4.} 23. Qe2 {[%emt 0:00:32]} Bg4 {[%emt 0:01:01]} 24. f3 {[%emt 0:00:02]} Bf5 {[%emt 0:00:15]} 25. Kf2 {[%emt 0:00:31]} (25. Re1 $11) 25... a5 {[%emt 0:01:59]} ({Black should play} 25... exf3 $17 26. gxf3 g4) 26. Na4 {[%emt 0:00:18]} (26. Rd2 $11) 26... Rde7 $17 {[%emt 0:00:23] And now ...exf3 would win. White is weak on the light squares} 27. Re1 {[%emt 0:00:55]} (27. Nc5 $17 Qg6 28. fxe4 Bxe4 29. Nxe4 Rxe4 30. Rd3) 27... Qd6 $2 {[%emt 0:00:30]} (27... exf3 $19 28. gxf3 g4) 28. Qd2 {[%emt 0:00:18]} (28. f4 $1 $11) 28... Qd8 $2 {[%emt 0:01:35]} (28... exf3 $19 29. gxf3 g4 30. Qxa5 b5) 29. Rad1 {[%emt 0:00:49]} Qc7 {[%emt 0:00:53]} 30. Qc3 {[%emt 0:00:29] Black must now prevent g4.} f6 {[%emt 0:00:09]} 31. d5 {[%emt 0:00:48]} cxd5 {[%emt 0:00:20]} 32. Rxd5 {[%emt 0:00:09]} Be6 {[%emt 0:00:19]} 33. Rxa5 {[%emt 0:00:30]} (33. Qxc7 {simplifies} Rxc7 34. Rxa5 exf3 35. gxf3 Bxa2 36. g4) 33... Bxa2 {[%emt 0:00:48]} ({Black should try} 33... exf3 $11 34. gxf3 Qd8) 34. Rc5 {[%emt 0:00:45]} (34. Qxc7 $14 Rxc7 35. Nc3) 34... Qd6 $11 {[%emt 0:00:12]} 35. b3 {[%emt 0:00:38]} (35. f4 $11 {remains equal.}) 35... Rd8 {[%emt 0:00:11]} (35... exf3 $17 {[%cal Oa2b3] Threatens to win with ...Bxb3!} 36. gxf3 Qe6) 36. Qb2 {[%emt 0:00:16]} Ra8 $2 {[%emt 0:01:11] [#]} 37. Rb5 $1 $36 {[%emt 0:01:15][%cal Bc5b5,Bb5b6,Bb6b7][%mdl 2080] White has strong initiative.} (37. Qxa2 $2 Qxc5 38. Qb2 Qe5 $19) 37... Qd3 $2 {[%emt 0:00:22]} (37... exf3 {was called for.} 38. Rb6 (38. Qxa2 Qd3 $11) 38... Qe5) 38. Rb6 {[%emt 0:00:01]} Qd8 {[%emt 0:00:10]} (38... Rf7 $142 39. Nc5 (39. Qxa2 Rc8 $18) 39... Qd5) 39. Qxf6+ {[%emt 0:00:04] White is clearly winning.} (39. Qxa2 $2 {too greedy.} Qxb6 40. Re2 Qc6 $19) 39... Kg8 {[%emt 0:00:03]} 40. Qxh6 {[%emt 0:01:03] White wants to mate with Rg6+.} Rg7 {[%emt 0:00:41]} 41. Qe6+ {[%emt 0:00:01]} ({Inferior is} 41. fxe4 Bxb3 42. Rd6 Qc7 $11) 41... Rf7 {[%emt 0:00:05]} 42. Rxb7 {[%emt 0:00:15] What a bad dream for Black.   Weighted Error Value: White=0.38/Black=0.52.  Loses game:     	White=1     	Black=1      Missed win:     	---       	Black=2      Mistake:       	White=5     	Black=5      Inaccurate:     	White=2     	Black=2      OK:         	White=7     	Black=11     Best:        	White=1     	Black=3      Strong:       	White=1     	---} 1-0